Cogmind - Beta 11.1 @@@ ROGUE MODE // 2022.11.20 @ 23:20:15 Player: darki Result: Destroyed by P-80 Master with Gamma Rifle Performance ------------- Evolutions (9) 4500 Regions Visited (19) 3800 Robots Destroyed (82) 410 Value Destroyed (2368) 2368 Prototype IDs (36) 720 Alien Tech Used (0) 0 Bonus (1860) 1860 TOTAL SCORE: 13658 Bonus ------- Follower Combat Kills 60 Entered DSFs 1500 Aligned with FarCom 300 Cogmind --------- Core Integrity 0/1600 Matter 300/300 Energy 99/100 System Corruption 17% Temperature Cool (0) Movement Core (50) Location -1/Access Parts ------- > --- POWER (3) -------- (None) > --- PROPULSION (7) --- (None) > --- UTILITY (12) ----- Improved Signal Interpreter Hacking Suite Advanced System Shield Advanced System Shield > --- WEAPON (3) ------- (None) > --- INVENTORY (5) ---- Light Particle Reactor Medium Treads Advanced Cryofiber Web Advanced Heat Sink Peak State ------------ > --- POWER ------------ Micro Antimatter Reactor Quantum Reactor > --- PROPULSION ------- Improved Antigrav System Improved Linear Gravjet Improved Linear Gravjet Improved Linear Gravjet Improved Linear Gravjet Improved Linear Gravjet Improved Linear Gravjet > --- UTILITY ---------- Advanced Power Amplifier Advanced Heat Sink Improved Signal Interpreter Advanced Melee Analysis Suite Advanced Melee Analysis Suite Advanced Target Analyzer Advanced ECM Suite Improved Reaction Control System Hacking Suite Hacking Suite Advanced System Shield Advanced System Shield > --- WEAPON ----------- Improved Plasma Cutter Thunder Hammer > --- INVENTORY -------- Advanced Cryofiber Web Advanced Heat Sink Advanced Weight Redist. System Improved Reaction Control System [Rating: 140] Favorites ----------- Power Micro Nuclear Core Engine Improved Ion Engine Power Core Micro Nuclear Core Reactor Fusion Reactor Propulsion Improved VTOL Module Treads Improved Treads Leg Aluminum Leg Hover Unit Improved Linear Gravjet Flight Unit Improved VTOL Module Utility Hacking Suite Device Cloak of Protection Storage Large Storage Unit Processor Advanced Melee Analysis Suite Hackware Hacking Suite Protection Light Armor Plating Weapon Great Maul Energy Gun EM Pulse Gun Energy Cannon Advanced Beam Cannon Ballistic Gun Light Assault Rifle Ballistic Cannon Advanced Assault Cannon Special Weapon Improved Plasma Cutter Impact Weapon Great Maul Slashing Weapon Mining Claw Build | -11 -10 -10 -9 -9 -9 -8 -8 -7 -7 -7 -6 -6 -5 -4 -4 -3 -2 -2 -1 ------- Run | Scr Mat Min Mat Min Exi Min Mat Fac Was Fac Fac DSF Fac Fac DSF Res Res DSF Acc Slots Evolved 18 | . . . 2 . . . 2 2 . . 2 . 2 2 . 2 2 . 2 Power 2 | . . . . . . . . 1 . . . . . 1 . . . . . Propulsion 5 | . . . . . . . 1 1 . . 1 . . 1 . . 1 . . Utility 10 | . . . 1 . . . 1 . . . 1 . 2 . . 2 1 . 2 Weapon 1 | . . . 1 . . . . . . . . . . . . . . . . Parts Attached 136 | . 1 . 10 4 2 1 38 12 1 14 3 . 9 4 4 3 . 4 26 Power 21 | . . . 1 1 . 1 7 2 . 1 . . 2 2 . 1 . . 3 Engine 8 | . . . 1 1 . 1 4 . . 1 . . . . . . . . . Core 7 | . . . . . . . 3 2 . . . . 1 . . 1 . . . Reactor 6 | . . . . . . . . . . . . . 1 2 . . . . 3 Propulsion 37 | . . . 2 1 . . 15 4 . 3 1 . 1 . 1 . . . 9 Treads 9 | . . . 2 1 . . 6 . . . . . . . . . . . . Leg 1 | . . . . . . . 1 . . . . . . . . . . . . Wheel . | . . . . . . . . . . . . . . . . . . . . Hover 12 | . . . . . . . 3 . . . . . . . . . . . 9 Flight 15 | . . . . . . . 5 4 . 3 1 . 1 . 1 . . . . Utility 46 | . 1 . 3 2 . . 5 6 1 4 1 . 3 . 3 1 . 3 13 Device 24 | . . . . . . . 3 4 . 2 . . 1 . 1 1 . . 12 Storage 2 | . . . 1 . . . 1 . . . . . . . . . . . . Processor 6 | . . . . . . . . 2 . 1 . . 2 . . . . . 1 Hackware 7 | . . . . . . . 1 . . 1 . . . . 2 . . 3 . Protection 7 | . 1 . 2 2 . . . . 1 . 1 . . . . . . . . Artifact . | . . . . . . . . . . . . . . . . . . . . Weapon 32 | . . . 4 . 2 . 11 . . 6 1 . 3 2 . 1 . 1 1 Energy Gun . | . . . . . . . . . . . . . . . . . . . . Energy Cannon 4 | . . . . . 1 . 3 . . . . . . . . . . . . Ballistic Gun 2 | . . . 1 . . . 1 . . . . . . . . . . . . Ballistic Cannon 1 | . . . . . . . . . . 1 . . . . . . . . . Launcher . | . . . . . . . . . . . . . . . . . . . . Special Weapon 2 | . . . . . . . . . . . . . 1 . . . . . 1 Impact Weapon 21 | . . . 3 . 1 . 7 . . 4 1 . 2 2 . . . 1 . Slashing Weapon 2 | . . . . . . . . . . 1 . . . . . 1 . . . Piercing Weapon . | . . . . . . . . . . . . . . . . . . . . Special Melee Weapon . | . . . . . . . . . . . . . . . . . . . . Unidentified Prototypes 10 | . . . . . 1 . 5 . . 2 . . 2 . . . . . . Corrupted Parts 1 | . . . . . . . 1 . . . . . . . . . . . . System Corruption 1 | . . . . . . . 1 . . . . . . . . . . . . Parts Lost 51 | . . . . 2 . 2 9 . . . . . . 1 4 2 . 5 26 Power 8 | . . . . . . 1 2 . . . . . . . 1 . . 2 2 Propulsion 15 | . . . . . . . 5 . . . . . . . 1 . . 1 8 Utility 24 | . . . . 2 . 1 1 . . . . . . 1 2 1 . 2 14 Weapon 4 | . . . . . . . 1 . . . . . . . . 1 . . 2 Highest Loss Streak 11 | . . . . 2 . 2 5 . . . . . . 1 3 2 . 5 11 To Critical Strikes . | . . . . . . . . . . . . . . . . . . . . Average Slot Usage (%) 81 | . 86 100 99 99 95 91 77 76 70 74 86 86 79 73 71 73 . 69 65 Engine 5 | . 14 14 11 11 11 11 6 . . 3 6 6 . . . . . . . Core 3 | . . . . . . . 2 13 15 11 6 6 5 5 5 9 . 6 . Reactor 1 | . . . . . . . . . . . . . 4 5 5 . . . 3 Treads 8 | . . . 15 22 22 22 13 . . . . . . . . . . . . Leg 2 | . 28 28 6 . . . . . . . . . . . . . . . . Hover 2 | . . . . . . . 1 6 . . . . . . . . . . 11 Flight 8 | . . . . . . . 1 21 30 29 33 33 29 26 26 23 . 19 2 Device 4 | . . . . . . . . 5 1 6 6 6 10 9 4 6 . 4 13 Storage 5 | . 14 14 11 11 11 11 9 3 . . . . . . . . . . . Processor 5 | . . . . . . . . 9 9 7 6 6 11 15 15 14 . 13 14 Hackware 7 | . . . . . . . 8 7 7 8 13 13 11 10 9 14 . 21 15 Protection 7 | . 1 14 21 21 22 14 6 . 5 . 6 6 . . . . . . . Energy Gun 1 | . 14 14 3 . . . . . . . . . . . . . . . . Ballistic Gun 1 | . 14 14 6 . . . . . . . . . . . . . . . . Impact Weapon 15 | . . . 23 33 28 33 26 7 . . 4 6 . 1 5 4 . 4 3 Naked Turns . | . . . . . . . . . . . . . . . . . . . . Heaviest Build 54 | 13 20 20 49 49 49 49 54 26 19 23 24 24 31 27 25 32 24 24 42 Greatest Support 63 | 20 20 20 43 46 46 46 63 24 20 20 25 25 27 27 27 36 36 36 50 Greatest Overweight (x) 12 | . . . 1 1 1 1 12 1 . 1 . . 1 . 1 . . . 1 Average Overweight (x) . | . . . . . . . 1 . . . . . . . . . . . . Largest Inventory Capacity 15 | . 8 8 15 15 15 15 15 8 5 5 5 5 5 5 5 5 5 5 5 Average Capacity 9 | . 8 8 10 15 15 15 14 6 5 5 5 5 5 5 5 5 5 5 5 Most Carried 15 | . 8 8 13 15 15 14 15 8 5 5 5 3 5 5 5 5 4 4 5 Average Carried 8 | . 7 8 8 14 14 13 13 6 4 4 3 3 4 4 4 4 4 4 3 Final Capacity 15 | 8 8 8 15 15 15 15 8 5 5 5 5 5 5 5 5 5 5 5 5 Final Carried 15 | 6 8 8 13 15 14 14 8 5 5 5 3 3 5 5 4 4 4 4 4 Class Distribution -------------------- 53% | Mutant 24% | Hacker-Sprinter 12% | Hacker-Mutant 6% | Sprinter Dominant Class ---------------- Mutant | -10/Materials Mutant | -10/Mines Mutant | -9/Materials Mutant | -9/Mines Mutant | -9/Exiles Mutant | -8/Mines Mutant | -8/Materials Sprinter | -7/Factory Sprinter | -7/Waste Sprinter | -7/Factory Hacker-Sprinter | -6/Factory Hacker-Sprinter | -6/DSF Hacker-Sprinter | -5/Factory Hacker-Sprinter | -4/Factory Hacker-Sprinter | -4/DSF Hacker-Sprinter | -3/Research Hacker-Sprinter | -2/Research Hacker-Sprinter | -2/DSF Hacker-Mutant | -1/Access Resources | -11 -10 -10 -9 -9 -9 -8 -8 -7 -7 -7 -6 -6 -5 -4 -4 -3 -2 -2 -1 ----------- Run | Scr Mat Min Mat Min Exi Min Mat Fac Was Fac Fac DSF Fac Fac DSF Res Res DSF Acc Matter Collected 1923 | 200 12 10 420 40 10 15 362 21 . 168 . . 21 2 142 169 . . 331 Remotely . | . . . . . . . . . . . . . . . . . . . . Salvage Created 3556 | . 119 16 549 336 . 108 1392 21 . 158 . . 21 . 172 169 . . 495 Parts 97 | . 8 2 18 3 . 3 36 . . 4 . . . . . 7 . . 16 Haulers Intercepted 13 | . 1 . 3 . . . 5 . . 1 . . . . . . . . 3 Recyclers Shooed . | . . . . . . . . . . . . . . . . . . . . Parts Field Recycled . | . . . . . . . . . . . . . . . . . . . . Retrieved Matter . | . . . . . . . . . . . . . . . . . . . . Parts Self-Destructed . | . . . . . . . . . . . . . . . . . . . . Prevented . | . . . . . . . . . . . . . . . . . . . . Kills | -11 -10 -10 -9 -9 -9 -8 -8 -7 -7 -7 -6 -6 -5 -4 -4 -3 -2 -2 -1 ------- Run | Scr Mat Min Mat Min Exi Min Mat Fac Was Fac Fac DSF Fac Fac DSF Res Res DSF Acc Combat Hostiles Destroyed 43 | . 2 1 6 4 . 3 21 . . . . . . . . 3 . . 3 Melee 27 | . . 1 3 3 . 2 13 . . . . . . . . 2 . . 3 Guns 3 | . 2 . 1 . . . . . . . . . . . . . . . . Classes Destroyed 13 | . 3 . 6 1 . . 2 1 . . . . . . . . . . . Worker 7 | . . . 4 1 . . 2 . . . . . . . . . . . . Builder 4 | . . . 1 . . . . . . . . . 1 . . . . . 2 Tunneler 1 | . . . . 1 . . . . . . . . . . . . . . . Hauler 13 | . 1 . 3 . . . 5 . . 1 . . . . . . . . 3 Recycler 6 | . . . 1 2 . . 3 . . . . . . . . . . . . Operator 4 | . . . . . . . . 1 . 3 . . . . . . . . . Watcher 4 | . . . 1 . . . 2 . . 1 . . . . . . . . . Swarmer 5 | . 1 1 . . . . 3 . . . . . . . . . . . . Grunt 21 | . 1 . 3 3 . 2 12 . . . . . . . . . . . . Duelist 2 | . . . 1 . . 1 . . . . . . . . . . . . . Sentry 7 | . . . 2 1 . . 4 . . . . . . . . . . . . Hunter 1 | . . . . . . . 1 . . . . . . . . . . . . Programmer 7 | . . . . . . . 1 . . . . . . . . 3 . . 3 Best Kill Streak 7 | . 1 1 5 4 . 3 7 1 . 2 . . 1 . . 2 . . 2 Combat Bots Only 7 | . 1 1 2 3 . 3 7 . . . . . . . . 2 . . 2 Max Kills in Single Turn 2 | . 1 1 1 1 . 2 1 1 . 1 . . 1 . . 1 . . 1 Gunslinging . | . . . . . . . . . . . . . . . . . . . . Exploded . | . . . . . . . . . . . . . . . . . . . . Melee 2 | . . 1 1 1 . 2 1 . . . . . . . . 1 . . 1 Uniques/NPCs Destroyed . | . . . . . . . . . . . . . . . . . . . . Combat | -11 -10 -10 -9 -9 -9 -8 -8 -7 -7 -7 -6 -6 -5 -4 -4 -3 -2 -2 -1 -------- Run | Scr Mat Min Mat Min Exi Min Mat Fac Was Fac Fac DSF Fac Fac DSF Res Res DSF Acc Damage Taken 7337 | . 33 290 194 297 . 317 1792 . . 80 . . . 198 385 473 . 218 3060 Core 2713 | . 10 42 . 69 . 18 526 . . 15 . . . 50 146 122 . 103 1612 Absorbed by Shields 74 | . . . . . . . . . . . . . . . 74 . . . . Core Remaining (%) 82 | 100 . 79 . . . 78 4 . . 97 . 100 100 . 82 90 . 92 . Volleys Fired 25 | . 12 . 5 . . . 1 . . 4 . . . . . . . . 3 Largest 3 | . 2 . 3 . . . 2 . . 1 . . . . . . . . 1 Hottest 136 | . 60 . 80 . . . 136 . . 48 . . . . . . . . 20 Shots Fired 48 | . 24 . 15 . . . 2 . . 4 . . . . . . . . 3 Gun 39 | . 24 . 15 . . . . . . . . . . . . . . . . Cannon 6 | . . . . . . . 2 . . 4 . . . . . . . . . Launcher . | . . . . . . . . . . . . . . . . . . . . Special 3 | . . . . . . . . . . . . . . . . . . . 3 Kinetic 26 | . 12 . 10 . . . . . . 4 . . . . . . . . . Thermal 5 | . . . . . . . 2 . . . . . . . . . . . 3 Explosive . | . . . . . . . . . . . . . . . . . . . . Electromagnetic 17 | . 12 . 5 . . . . . . . . . . . . . . . . Robot Hit Streak 7 | . 6 . 7 . . . 3 . . . . . . . . . . . 5 Robot Miss Streak 5 | . 2 . 5 . . . . . . . . . . . . . . . 1 Penetration Max . | . . . . . . . . . . . . . . . . . . . . Secondary Targets . | . . . . . . . . . . . . . . . . . . . . Shots Hit Robots 205 | . 15 . 28 21 . 7 76 1 . 12 . . 1 . . 14 . . 30 Core Hits 42 | . 5 1 7 1 . . 16 . . 2 . . . . . 2 . . 8 Critical Kills 5 | . . . 1 . . . 2 . . . . . . . . 1 . . 1 Critical Parts Destroyed 39 | . . . 6 4 . 3 15 . . 3 . . . . . 2 . . 6 Critical Strikes 47 | . . . 7 4 . 4 17 . . 3 . . . . . 5 . . 7 Smash 45 | . . . 7 4 . 4 17 . . 3 . . . . . 3 . . 7 Sever 2 | . . . . . . . . . . . . . . . . 2 . . . Melee Attacks 321 | . . . 29 25 . 9 114 2 . 20 1 . 3 4 10 40 . . 64 Impact 298 | . . . 29 25 . 9 114 2 . 5 1 . 3 4 10 32 . . 64 Slashing 23 | . . . . . . . . . . 15 . . . . . 8 . . . Piercing . | . . . . . . . . . . . . . . . . . . . . Sneak Attacks 39 | . . . 11 4 . . 13 1 . 5 . . 1 . . . . . 4 Combat Hostiles . | . . . . . . . . . . . . . . . . . . . . Follow-up Attacks 38 | . . . 5 3 . 3 24 . . . . . . . . 3 . . . Damage Inflicted 10865 | . 150 9 1574 1121 . 323 3965 69 . 580 . . 103 . . 926 . . 2045 Guns 216 | . 150 . 66 . . . . . . . . . . . . . . . . Cannons 41 | . . . . . . . 41 . . . . . . . . . . . . Explosions . | . . . . . . . . . . . . . . . . . . . . Melee 10557 | . . . 1508 1121 . 323 3924 69 . 580 . . 103 . . 926 . . 2003 Ramming 18 | . . 9 . . . . . . . . . . . . . . . . 9 Kinetic 95 | . 50 . 45 . . . . . . . . . . . . . . . . Thermal 74 | . . . . . . . 41 . . . . . . . . . . . 33 Explosive . | . . . . . . . . . . . . . . . . . . . . Electromagnetic 121 | . 100 . 21 . . . . . . . . . . . . . . . . Impact 9887 | . . . 1508 1121 . 323 3924 69 . 265 . . 103 . . 571 . . 2003 Slashing 670 | . . . . . . . . . . 315 . . . . . 355 . . . Piercing . | . . . . . . . . . . . . . . . . . . . . Highest Corruption 17 | . . . . . . . 1 . 10 10 . . . . . 6 . 5 17 Average Corruption 6 | . . . . . . . 1 . 10 10 . . . . . 5 . 5 7 Corruption Purged . | . . . . . . . . . . . . . . . . . . . . Corruption Blocked . | . . . . . . . . . . . . . . . . . . . . Effects 59 | . . . . . . . 5 . 2 12 . . . . . 10 . . 30 Message Errors 6 | . . . . . . . 1 . . 1 . . . . . 1 . . 3 Matter Fused 19 | . . . . . . . 4 . . 4 . . . . . 4 . . 7 Heat Flow Errors 11 | . . . . . . . . . . 3 . . . . . 2 . . 6 Energy Discharges 9 | . . . . . . . . . 1 2 . . . . . 1 . . 5 Data Loss (minor) 9 | . . . . . . . . . . 2 . . . . . 1 . . 6 Data Loss (major) 2 | . . . . . . . . . . . . . . . . 1 . . 1 Alerts 1 | . . . . . . . . . . . . . . . . . . . 1 Misdirections 2 | . . . . . . . . . 1 . . . . . . . . . 1 Overload Shots . | . . . . . . . . . . . . . . . . . . . . Overflow Damage 4499 | . . . 904 524 . 163 1440 19 . 297 . . 63 . . 316 . . 773 Projectiles . | . . . . . . . . . . . . . . . . . . . . Explosions . | . . . . . . . . . . . . . . . . . . . . Melee 4499 | . . . 904 524 . 163 1440 19 . 297 . . 63 . . 316 . . 773 Knockbacks 32 | . . . 5 3 . 2 9 1 . 1 . . 1 . . 5 . . 5 Impact 31 | . . . 5 3 . 2 8 1 . 1 . . 1 . . 5 . . 5 Kinetic . | . . . . . . . . . . . . . . . . . . . . Secondary 1 | . . . . . . . 1 . . . . . . . . . . . . Self-Inflicted Damage 4 | . . . . . . . . . . . . . . . . . . . 4 Shots . | . . . . . . . . . . . . . . . . . . . . Rammed 4 | . . . . . . . . . . . . . . . . . . . 4 Targets Rammed 5 | . . 1 . . . . . . . . . . . . . . . . 4 Kicked 1 | . . 1 . . . . . . . . . . . . . . . . . Crushed . | . . . . . . . . . . . . . . . . . . . . Highest Temperature 268 | . 40 . 80 . . 8 42 . . 268 15 . 175 131 . 240 . . 168 Average Temperature 65 | . 18 . 38 . . 6 14 . . 143 9 . 54 45 . 125 . . 28 Received Heat Transfer 981 | . . 36 51 135 . 90 648 . . 12 . . . 9 . . . . . Siege Activations . | . . . . . . . . . . . . . . . . . . . . Robots Corrupted . | . . . . . . . . . . . . . . . . . . . . Combat Hostiles . | . . . . . . . . . . . . . . . . . . . . Parts Fried 53 | . 1 . 10 3 . 3 17 5 . 5 . . 1 . . . . . 8 Impact Corruptions 134 | . . . 26 16 . 5 40 1 . 9 . . 3 . . 10 . . 24 Robots Melted . | . . . . . . . . . . . . . . . . . . . . Combat Hostiles . | . . . . . . . . . . . . . . . . . . . . Parts Melted . | . . . . . . . . . . . . . . . . . . . . Heat Transferred 148 | . . . . . . . 74 . . . . . . . . . . . 74 Parts Sabotaged . | . . . . . . . . . . . . . . . . . . . . Parts Stolen . | . . . . . . . . . . . . . . . . . . . . Parts Stripped . | . . . . . . . . . . . . . . . . . . . . Power Chain Reactions . | . . . . . . . . . . . . . . . . . . . . Missiles Intercepted . | . . . . . . . . . . . . . . . . . . . . Alert | -11 -10 -10 -9 -9 -9 -8 -8 -7 -7 -7 -6 -6 -5 -4 -4 -3 -2 -2 -1 ------- Run | Scr Mat Min Mat Min Exi Min Mat Fac Was Fac Fac DSF Fac Fac DSF Res Res DSF Acc Peak Influence 308 | . 91 45 172 90 . 60 308 201 100 277 53 37 79 34 68 98 54 40 174 Initial 140 | . . . 17 . . . 23 140 70 70 52 37 18 16 23 32 54 40 . Average 67 | . 38 7 73 35 . 44 113 188 84 169 52 37 35 17 39 21 54 25 47 Maximum Alert Level 1 | . . . . . . . 1 1 . 1 . . . . . . . . . Low Security (%) 93 | . 100 100 100 100 . 100 82 65 100 67 100 100 100 100 100 100 100 100 100 Level 1 6 | . . . . . . . 17 35 . 32 . . . . . . . . . Level 2 . | . . . . . . . . . . . . . . . . . . . . Level 3 . | . . . . . . . . . . . . . . . . . . . . Level 4 . | . . . . . . . . . . . . . . . . . . . . Level 5 . | . . . . . . . . . . . . . . . . . . . . High Security . | . . . . . . . . . . . . . . . . . . . . Max Security . | . . . . . . . . . . . . . . . . . . . . Squads Dispatched 16 | . 1 . . . . . 1 . . 2 . . 2 2 1 3 . 1 3 Investigation 4 | . . . . . . . 1 . . . . . . 2 . . . . 1 Extermination 6 | . . . . . . . . . . 1 . . 1 . . 2 . . 2 Reinforcement 6 | . 1 . . . . . . . . 1 . . 1 . 1 1 . 1 . Assault . | . . . . . . . . . . . . . . . . . . . . Garrison . | . . . . . . . . . . . . . . . . . . . . Intercept . | . . . . . . . . . . . . . . . . . . . . Searches Triggered . | . . . . . . . . . . . . . . . . . . . . Construction Impeded . | . . . . . . . . . . . . . . . . . . . . Haulers Reinforced 1 | . . . . . . . . . . 1 . . . . . . . . . Active Scanning Responses . | . . . . . . . . . . . . . . . . . . . . Cargo Convoy Interrupts . | . . . . . . . . . . . . . . . . . . . . Stealth | -11 -10 -10 -9 -9 -9 -8 -8 -7 -7 -7 -6 -6 -5 -4 -4 -3 -2 -2 -1 --------- Run | Scr Mat Min Mat Min Exi Min Mat Fac Was Fac Fac DSF Fac Fac DSF Res Res DSF Acc Distress Signals 8 | . . . 1 . . . 3 1 . 1 . . . . . . . . 2 Communications Jammed . | . . . . . . . . . . . . . . . . . . . . Distress Signals . | . . . . . . . . . . . . . . . . . . . . Times Spotted 138 | . 6 15 12 6 . 3 33 1 5 10 . . . 1 5 8 . 2 31 Peak Tracking Total 12 | . 2 12 3 3 . 3 6 2 5 3 . . 1 1 3 6 . 3 12 Tactical Retreats 20 | . 1 . 1 . . . 4 . . 1 . . . 1 2 1 . . 9 Traps | -11 -10 -10 -9 -9 -9 -8 -8 -7 -7 -7 -6 -6 -5 -4 -4 -3 -2 -2 -1 ------- Run | Scr Mat Min Mat Min Exi Min Mat Fac Was Fac Fac DSF Fac Fac DSF Res Res DSF Acc Traps Triggered 14 | . . . . . . . 2 4 . . . . 1 1 2 2 . . 2 Indirectly . | . . . . . . . . . . . . . . . . . . . . Trap Hack Attempts . | . . . . . . . . . . . . . . . . . . . . Triggered . | . . . . . . . . . . . . . . . . . . . . Disarmed . | . . . . . . . . . . . . . . . . . . . . Reprogrammed . | . . . . . . . . . . . . . . . . . . . . Reused . | . . . . . . . . . . . . . . . . . . . . Traps Extracted . | . . . . . . . . . . . . . . . . . . . . Installed . | . . . . . . . . . . . . . . . . . . . . Triggered 1 | . . . . . . . . . . . . . . . . . . . 1 Machines | -11 -10 -10 -9 -9 -9 -8 -8 -7 -7 -7 -6 -6 -5 -4 -4 -3 -2 -2 -1 ---------- Run | Scr Mat Min Mat Min Exi Min Mat Fac Was Fac Fac DSF Fac Fac DSF Res Res DSF Acc Machines Disabled 9 | . . . . 2 . . . . . 3 . . . . 3 . . . 1 Max in Single Turn 1 | . . . . . . . . . . 1 . . . . 1 . . . 1 Garrison Access 3 | . . . . . . . . 1 . . . . 1 . . . . . 1 Machines Sabotaged . | . . . . . . . . . . . . . . . . . . . . Garrisons Compromised . | . . . . . . . . . . . . . . . . . . . . Overloaded Fab Kills . | . . . . . . . . . . . . . . . . . . . . Hacking | -11 -10 -10 -9 -9 -9 -8 -8 -7 -7 -7 -6 -6 -5 -4 -4 -3 -2 -2 -1 --------- Run | Scr Mat Min Mat Min Exi Min Mat Fac Was Fac Fac DSF Fac Fac DSF Res Res DSF Acc Machines Accessed 45 | . 2 . 3 1 2 . 3 4 . 5 1 . 11 3 . 5 1 . 4 Terminals 34 | . 2 . 3 1 . . 2 3 . 4 1 . 9 2 . 3 1 . 3 Fabricators 4 | . . . . . . . . . . 1 . . 1 1 . 1 . . . Repair Stations . | . . . . . . . . . . . . . . . . . . . . Recycling Units . | . . . . . . . . . . . . . . . . . . . . Scanalyzers . | . . . . . . . . . . . . . . . . . . . . Garrison Access 5 | . . . . . . . 1 1 . . . . 1 . . 1 . . 1 Total Hacks 104 | . 3 . 12 3 5 . 7 8 . 7 1 . 26 8 . 15 2 . 7 Successful 59 | . 2 . 6 2 5 . 6 4 . 2 1 . 18 5 . 4 1 . 3 Failed 45 | . 1 . 6 1 . . 1 4 . 5 . . 8 3 . 11 1 . 4 Catastrophic 3 | . . . . . . . . . . . . . . . . 3 . . . Database Lockouts . | . . . . . . . . . . . . . . . . . . . . Manual 57 | . 3 . 11 . 1 . 4 5 . 6 . . 13 3 . 8 . . 3 Terminals 80 | . 3 . 12 3 . . 5 5 . 4 1 . 22 6 . 12 2 . 5 Fabricators 7 | . . . . . . . . . . 3 . . 1 2 . 1 . . . Repair Stations . | . . . . . . . . . . . . . . . . . . . . Recycling Units . | . . . . . . . . . . . . . . . . . . . . Scanalyzers . | . . . . . . . . . . . . . . . . . . . . Garrison Access 12 | . . . . . . . 2 3 . . . . 3 . . 2 . . 2 Terminal Hacks 30 | . . . 3 2 5 . 2 . . . 1 . 9 3 . 3 1 . 1 Record 6 | . . . . . 4 . . . . . . . . 2 . . . . . Part Schematic 2 | . . . . . . . . . . . . . 2 . . . . . . Prototype ID Bank 1 | . . . . . . . . . . . . . 1 . . . . . . Open DSF 5 | . . . . . . . . . . . 1 . 1 1 . 1 1 . . Level Access Points 1 | . . . . . . . 1 . . . . . . . . . . . . Branch Access Points 2 | . . . 1 . . . . . . . . . 1 . . . . . . Unreport Threat 3 | . . . 1 . . . 1 . . . . . 1 . . . . . . Locate Traps 1 | . . . . . . . . . . . . . 1 . . . . . . Dispatch Records 1 | . . . . 1 . . . . . . . . . . . . . . . Recall Reinforcements 1 | . . . . . . . . . . . . . 1 . . . . . . Hauler Manifests 1 | . . . . . . . . . . . . . . . . 1 . . . Zone Layout 5 | . . . 1 1 . . . . . . . . 1 . . 1 . . 1 EX-Prototype ID Bank 1 | . . . . . 1 . . . . . . . . . . . . . . Fabricator Hacks 3 | . . . . . . . . . . 1 . . 1 1 . . . . . Network Status 1 | . . . . . . . . . . 1 . . . . . . . . . Load Schematic 1 | . . . . . . . . . . . . . . 1 . . . . . Build 1 | . . . . . . . . . . . . . 1 . . . . . . Repair Station Hacks . | . . . . . . . . . . . . . . . . . . . . Recycling Unit Hacks . | . . . . . . . . . . . . . . . . . . . . Scanalyzer . | . . . . . . . . . . . . . . . . . . . . Garrison Access Hacks 4 | . . . . . . . 1 1 . . . . 1 . . . . . 1 Unlock Access 1 | . . . . . . . 1 . . . . . . . . . . . . Seal Access 3 | . . . . . . . . 1 . . . . 1 . . . . . 1 Unauthorized Hacks 22 | . 2 . 3 . . . 3 3 . 1 . . 7 1 . 1 . . 1 Terminals 21 | . 2 . 3 . . . 2 3 . 1 . . 7 1 . 1 . . 1 Botnet 21 | . 2 . 3 . . . 2 3 . 1 . . 7 1 . 1 . . 1 Fabricators . | . . . . . . . . . . . . . . . . . . . . Repair Stations . | . . . . . . . . . . . . . . . . . . . . Recycling Units . | . . . . . . . . . . . . . . . . . . . . Scanalyzers . | . . . . . . . . . . . . . . . . . . . . Garrison Access 1 | . . . . . . . 1 . . . . . . . . . . . . Restock 1 | . . . . . . . 1 . . . . . . . . . . . . Data Cores Recovered 1 | . . . . . . . . 1 . . . . . . . . . . . Used 1 | . . . . . . . . 1 . . . . . . . . . . . Hacking Detections 29 | . 1 . 1 1 . . . 3 . 5 . . 10 2 . 4 . . 2 Full Trace Events 1 | . . . . . . . . . . . . . . 1 . . . . . Feedback Events . | . . . . . . . . . . . . . . . . . . . . Feedback Blocked . | . . . . . . . . . . . . . . . . . . . . Robot Schematics Acquired . | . . . . . . . . . . . . . . . . . . . . Robots Built . | . . . . . . . . . . . . . . . . . . . . Authchips . | . . . . . . . . . . . . . . . . . . . . Time . | . . . . . . . . . . . . . . . . . . . . Total Robot Build Rating . | . . . . . . . . . . . . . . . . . . . . Part Schematics Acquired 2 | . . . . . . . . . . . . . 2 . . . . . . Parts Built 1 | . . . . . . . . . . . . . 1 . . . . . . Authchips . | . . . . . . . . . . . . . . . . . . . . Time 39 | . . . . . . . . . . . . . 39 . . . . . . Total Part Build Rating 7 | . . . . . . . . . . . . . 7 . . . . . . Parts Repaired . | . . . . . . . . . . . . . . . . . . . . Time . | . . . . . . . . . . . . . . . . . . . . Parts Recycled . | . . . . . . . . . . . . . . . . . . . . Recycled Matter . | . . . . . . . . . . . . . . . . . . . . Retrieved Matter . | . . . . . . . . . . . . . . . . . . . . Retrieved Components . | . . . . . . . . . . . . . . . . . . . . Parts Scanalyzed . | . . . . . . . . . . . . . . . . . . . . Part Schematics Acquired . | . . . . . . . . . . . . . . . . . . . . Parts Damaged . | . . . . . . . . . . . . . . . . . . . . Bothacking | -11 -10 -10 -9 -9 -9 -8 -8 -7 -7 -7 -6 -6 -5 -4 -4 -3 -2 -2 -1 ------------ Run | Scr Mat Min Mat Min Exi Min Mat Fac Was Fac Fac DSF Fac Fac DSF Res Res DSF Acc Used RIF Installer . | . . . . . . . . . . . . . . . . . . . . Robots Hacked . | . . . . . . . . . . . . . . . . . . . . Non-combat . | . . . . . . . . . . . . . . . . . . . . Combat . | . . . . . . . . . . . . . . . . . . . . Robot Hacks Applied . | . . . . . . . . . . . . . . . . . . . . Relay Couplers Released 4 | . . . . . . . 4 . . . . . . . . . . . . Programmers 4 | . . . . . . . 4 . . . . . . . . . . . . Fabnet Peak Effective % . | . . . . . . . . . . . . . . . . . . . . Robots Rewired . | . . . . . . . . . . . . . . . . . . . . Allies Hacked . | . . . . . . . . . . . . . . . . . . . . Hacks Repelled . | . . . . . . . . . . . . . . . . . . . . Allies | -11 -10 -10 -9 -9 -9 -8 -8 -7 -7 -7 -6 -6 -5 -4 -4 -3 -2 -2 -1 -------- Run | Scr Mat Min Mat Min Exi Min Mat Fac Was Fac Fac DSF Fac Fac DSF Res Res DSF Acc Total Allies 1 | . . . . 1 . . . . . . . . . . . . . . . Largest Group 1 | . . . . 1 . . . . . . . . . . . . . . . Highest-Rated Group 31 | . . . . 31 . . . . . . . . . . . . . . . Highest-Rated Ally 31 | . . . . 31 . . . . . . . . . . . . . . . Total Orders . | . . . . . . . . . . . . . . . . . . . . Ally Attacks 9 | . . . . 9 . . . . . . . . . . . . . . . Total Damage 103 | . . . . 103 . . . . . . . . . . . . . . . Kills 2 | . . . . 2 . . . . . . . . . . . . . . . Allies Corrupted . | . . . . . . . . . . . . . . . . . . . . Allies Melted . | . . . . . . . . . . . . . . . . . . . . Intel | -11 -10 -10 -9 -9 -9 -8 -8 -7 -7 -7 -6 -6 -5 -4 -4 -3 -2 -2 -1 ------- Run | Scr Mat Min Mat Min Exi Min Mat Fac Was Fac Fac DSF Fac Fac DSF Res Res DSF Acc Robot Analysis Total . | . . . . . . . . . . . . . . . . . . . . Derelict Logs Recovered 1 | . . . . 1 . . . . . . . . . . . . . . . Drone Launches . | . . . . . . . . . . . . . . . . . . . . Drone Recoveries . | . . . . . . . . . . . . . . . . . . . . Exploration | -11 -10 -10 -9 -9 -9 -8 -8 -7 -7 -7 -6 -6 -5 -4 -4 -3 -2 -2 -1 ------------- Run | Scr Mat Min Mat Min Exi Min Mat Fac Was Fac Fac DSF Fac Fac DSF Res Res DSF Acc Turns Passed 9047 | . 419 64 804 1138 482 171 1906 240 43 419 60 10 726 201 86 1053 2 20 1203 Spaces Moved 7711 | 1 202 53 283 419 241 89 692 574 137 939 124 41 976 352 125 1152 9 52 1250 Core 305 | . . . . . . . 30 . . . . . . . . . . . 275 Treads 1458 | . . . 177 419 241 89 532 . . . . . . . . . . . . Legs 367 | 1 202 53 106 . . . 5 . . . . . . . . . . . . Wheels . | . . . . . . . . . . . . . . . . . . . . Hover 1049 | . . . . . . . 113 130 . . . . . . . . . . 806 Flight 4532 | . . . . . . . 12 444 137 939 124 41 976 352 125 1152 9 52 169 Fastest Speed 24 | 120 120 120 120 160 160 160 42 27 27 26 24 24 24 25 25 25 25 25 24 Average Speed 73 | 120 120 120 200 238 198 171 198 30 27 26 24 24 40 25 25 25 25 27 40 Slowest Speed 705 | 120 120 120 240 240 240 240 705 102 27 94 26 24 96 25 25 25 25 28 120 Overloaded Moves . | . . . . . . . . . . . . . . . . . . . . Propulsion Burnouts . | . . . . . . . . . . . . . . . . . . . . Robots Hopped 9 | . . . . . . . . 2 . 4 . . 1 . . 2 . . . Cave-ins Triggered . | . . . . . . . . . . . . . . . . . . . . Exploration Rate (%) 35 | 2 42 21 27 76 59 33 43 16 80 25 4 42 24 10 88 34 1 53 35 Regions Visited 19 Branch Regions 4 Pre-discovered Areas 2 | . . . . 1 1 . . . . . . . . . . . . . . Known Exits Taken 8 | . . . 1 . . . 1 . . 1 1 . 1 1 . 1 1 . . Unknown Exits Taken 6 | 1 1 1 . 1 1 1 . . . . . . . . . . . . . Scrap Searched 2 | . . . . 2 . . . . . . . . . . . . . . . Spaces Dug 65 | . . . . 1 . . 3 . . 2 1 . 2 4 . 23 . . 29 Terrain Destroyed 65 | . . . . 1 . . 3 . . 2 1 . 2 4 . 23 . . 29 Melee 63 | . . . . 1 . . 3 . . . 1 . 2 4 . 23 . . 29 Projectile 2 | . . . . . . . . . . 2 . . . . . . . . . AOE . | . . . . . . . . . . . . . . . . . . . . Terrain Rammed . | . . . . . . . . . . . . . . . . . . . . Walls Destroyed . | . . . . . . . . . . . . . . . . . . . . Machines Disabled . | . . . . . . . . . . . . . . . . . . . . Actions | -11 -10 -10 -9 -9 -9 -8 -8 -7 -7 -7 -6 -6 -5 -4 -4 -3 -2 -2 -1 --------- Run | Scr Mat Min Mat Min Exi Min Mat Fac Was Fac Fac DSF Fac Fac DSF Res Res DSF Acc Total 10466 | . 358 53 466 514 247 95 1051 632 143 1065 151 40 1299 459 160 1845 8 55 1825 Wait 2119 | . 137 . 119 68 . . 185 39 2 79 23 . 281 92 . 636 . . 458 Move 7676 | . 201 52 282 418 240 88 691 570 136 930 124 40 973 351 124 1147 8 51 1250 Hop 9 | . . . . . . . . 2 . 4 . . 1 . . 2 . . . Pick Up 55 | . 5 . 13 2 2 1 17 . 1 2 . . 4 2 . 2 . . 4 Fast Attach 87 | . . . 7 4 . . 26 7 . 7 . . 5 2 3 2 . 4 20 Attach 33 | . 1 . 2 . 1 1 9 1 1 6 2 . 1 2 1 1 . . 4 Detach 28 | . . . . . . . 12 2 1 5 . . 4 2 . . . . 2 Swap 16 | . . . 1 . 1 . 3 4 . 1 1 . 3 . . . . . 2 Drop 78 | . 2 . 14 2 3 . 26 6 2 7 . . 6 4 . . . . 6 Fire 25 | . 12 . 5 . . . 1 . . 4 . . . . . . . . 3 Melee 269 | . . . 23 20 . 5 81 1 . 20 1 . 3 4 10 37 . . 64 Ram 4 | . . . . . . . . . . . . . . . . . . . 4 Kick 1 | . . 1 . . . . . . . . . . . . . . . . . Crush . | . . . . . . . . . . . . . . . . . . . . Escape Stasis 66 | . . . . . . . . . . . . . 18 . 22 18 . . 8 Rewire . | . . . . . . . . . . . . . . . . . . . . Trap . | . . . . . . . . . . . . . . . . . . . . Miscellaneous . | . . . . . . . . . . . . . . . . . . . . Route ------- -11/Scrapyard -10/Materials -10/Mines -9/Materials -9/Mines (discovered 3 exits: *Mat x2 / *Exi) -9/Exiles -8/Mines -8/Materials (discovered 4 exits: *Fac x3 / Gar) -7/Factory (discovered 2 exits: [*Sto x2]) -7/Waste -7/Factory -6/Factory -6/DSF -5/Factory (discovered 5 exits: *Fac / Upp x2 / Ext x2) -4/Factory (discovered 2 exits: *Res / DSF) -4/DSF -3/Research -2/Research -2/DSF -1/Access History --------- Turn | Location | Event 1 | -11/Scrapyard | Discovered new exit (range 0) 1 | -11/Scrapyard | Entered Materials 305 | -10/Materials | Build established: Mutant 368 | -10/Materials | Discovered new exit (range 9) 420 | -10/Materials | Entered Mines 455 | -10/Mines | Assembled infested the area 474 | -10/Mines | Discovered new exit (range 9) 484 | -10/Mines | Entered Materials 484 | -9/Materials | Evolved 2 slots: Utility x1, Weapon x1 1032 | -9/Materials | Identified exit to Mines 1288 | -9/Materials | Entered Mines 1432 | -9/Mines | Escorted by a lone wolf Derelict 1683 | -9/Mines | Discovered new exit (range 13) 2131 | -9/Mines | Joined a pair of Derelicts in attacking an 0b10 outpost 2238 | -9/Mines | Learned location of Storage (-7) 2369 | -9/Mines | Discovered new exit (range 8) 2417 | -9/Mines | Deemed a non-threat by the Exiles lab entrance 2417 | -9/Mines | Discovered new exit (range 5) 2426 | -9/Mines | Entered Exiles 2491 | -9/Exiles | Met 8R-AWN 2530 | -9/Exiles | Met EX-HEX 2597 | -9/Exiles | Met EX-BIN 2626 | -9/Exiles | Aligned with FarCom system 2628 | -9/Exiles | Given EX-Vault access code 2686 | -9/Exiles | Opened EX-Vault 2710 | -9/Exiles | Found Cloak of Protection 2742 | -9/Exiles | Warned to stay clear of 0b10 Research branches 2788 | -9/Exiles | Met EX-DEC 2795 | -9/Exiles | Learned location of Zion (-7) 2889 | -9/Exiles | Discovered new exit (range 14) 2908 | -9/Exiles | Left Exiles lab with Cloak of Protection 2908 | -9/Exiles | Entered Mines 3058 | -8/Mines | Discovered new exit (range 7) 3079 | -8/Mines | Entered Materials 3079 | -8/Materials | Evolved 2 slots: Propulsion x1, Utility x1 3135 | -8/Materials | Identified exit to Factory 3829 | -8/Materials | Identified exit to Garrison 4527 | -8/Materials | Lost 5 parts (1p3n1u) 4557 | -8/Materials | Destroyed 7 combat bots 4595 | -8/Materials | Core integrity fell below 50% 4617 | -8/Materials | Core integrity fell below 20% 4639 | -8/Materials | Lost 3 parts (1p1n1w) 4985 | -8/Materials | Entered Factory 4985 | -7/Factory | Evolved 2 slots: Power x1, Propulsion x1 5027 | -7/Factory | Discovered new exit (range 12) 5113 | -7/Factory | Discovered new exit (range 14) 5225 | -7/Factory | Sucked down chute 5225 | -7/Factory | Entered Waste 5232 | -7/Waste | Spotted C-40 Crusher 5240 | -7/Waste | EMP discharged 5240 | -7/Waste | System corruption reached 10% 5244 | -7/Waste | Spotted C-40 Crusher 5255 | -7/Waste | Spotted C-40 Crusher 5260 | -7/Waste | Spotted C-40 Crusher 5260 | -7/Waste | Spotted C-40 Crusher 5261 | -7/Waste | Spotted C-40 Crusher 5265 | -7/Waste | Discovered new exit (range 10) 5268 | -7/Waste | Entered Factory 5331 | -7/Factory | Build established: Sprinter 5458 | -7/Factory | Discovered new exit (range 13) 5687 | -7/Factory | Identified exit to Factory 5687 | -7/Factory | Entered another Factory area 5687 | -6/Factory | Evolved 2 slots: Propulsion x1, Utility x1 5747 | -6/Factory | Identified exit to DSF 5747 | -6/Factory | Entered DSF 5752 | -6/DSF | Discovered new exit (range 11) 5754 | -6/DSF | Identified exit to Factory 5757 | -6/DSF | Entered Factory 5757 | -5/Factory | Evolved 2 slots: Utility x2 5817 | -5/Factory | Fabricated Imp. Cloaking Device (x1) 5820 | -5/Factory | Discovered new exit (range 16) 5832 | -5/Factory | Identified exit to Factory 6282 | -5/Factory | Identified exit to Upper Caves 6282 | -5/Factory | Identified exit to Extension 6483 | -5/Factory | Entered another Factory area 6483 | -4/Factory | Evolved 2 slots: Power x1, Propulsion x1 6583 | -4/Factory | Build established: Hacker-Sprinter 6626 | -4/Factory | Spotted B-86 Titan 6674 | -4/Factory | Discovered new exit (range 15) 6684 | -4/Factory | Identified exit to DSF 6684 | -4/Factory | Entered DSF 6713 | -4/DSF | Additional patrols routed to DSF 6739 | -4/DSF | Discovered new exit (range 15) 6749 | -4/DSF | Identified exit to Research 6769 | -4/DSF | Lost 3 parts (1n2u) 6770 | -4/DSF | Entered Research 6770 | -3/Research | Evolved 2 slots: Utility x2 7819 | -3/Research | Discovered new exit (range 15) 7823 | -3/Research | Identified exit to Research 7823 | -3/Research | Entered another Research area 7823 | -2/Research | Evolved 2 slots: Propulsion x1, Utility x1 7825 | -2/Research | Identified exit to DSF 7825 | -2/Research | Entered DSF 7835 | -2/DSF | Discovered new exit (range 11) 7840 | -2/DSF | Additional patrols routed to DSF 7845 | -2/DSF | Identified exit to Access 7845 | -2/DSF | Entered Access 7845 | -1/Access | Evolved 2 slots: Utility x2 7873 | -1/Access | Lost 5 parts (2p1n2u) 8408 | -1/Access | Lost 11 parts (1p6n3u1w) 8650 | -1/Access | Build established: Hacker-Mutant 8941 | -1/Access | System corruption reached 10% 8977 | -1/Access | Core integrity fell below 50% 9011 | -1/Access | Lost 10 parts (1p1n7u1w) 9023 | -1/Access | Core integrity fell below 20% 9027 | -1/Access | Spotted B-99 Colossus 9048 | -1/Access | Destroyed by P-80 Master with Gamma Rifle Last Messages --------------- 08980_ Adv. Target Analyzer destroyed. 08987_ System corrupted: Component data lost. 09008_ P-80 Master resets S-43 Plague, system corruption cleaned. 09015_ K-01 Serf destroyed. 09016_ K-01 Serf collects debris. 09018_ P-80 Master resets K-01 Serf, system corruption cleaned. 09019_ K-01 Serf collects debris. 09021_ P-80 Master resets K-01 Serf, system corruption cleaned. 09021_ K-01 Serf collects debris. 09023_ Slammed into K-01 Serf. 09023_ K-01 Serf destroyed. 09024_ K-01 Serf collects debris. 09025_ Slammed into K-01 Serf. 09031_ Slug penetrates Wall. 09034_ Penetrated by Slug. 09034_ Adv. Melee Analysis Suite destroyed. 09034_ Penetrated by Slug. 09042_ Knocked back. 09043_ System corrupted: Matter fused (-6). 09043_ Acquired 6 matter. Map ----- +----------------------------------------------------+ | ??????????????????????????????? | | ??????????????????????????????? | | ??????????????????????????????? | | ??????????????????????????????? | | ??????????????????????????????? | | ??????????????????????????????? | | ??????????????????????????????? | | ??????????????????????????????? | | #?##############??????????????? | | #??????????????? | | #??????????????? | | #??????????????? | | " #??????????????? | | """" #??????????????? | | """"" #???#######????? | | """"" g #??## #????? | | """" g ####; #????? | | " pp #????? | | ###### #????? | | #????# H #????? | | !#????###s######?? | | #######??????#p #?? | | #????????????# #?? | | #????????????# !#?? | | #????????????# #?? | | ####?????????# @ #?? | | +?????????# #?? | | #?????????########?? | | # #??????????????????? | | / +??????????????????? | | #######+####??????????????????? | | ??????????????????????????????? | | ??????????????????????????????? | | ??????????????????????????????? | | ??????????????????????????????? | | #?????????????????????????????? | | #?????????????????????????????? | | #?????????????????????????????? | | #?????????????????????????????? | | ###???????????????????????????? | | ??????????????????????????? | | ###???????????????????????????? | | ??????????????????????????????? | | ??????????????????????????????? | | ??????????????????????????????? | | ??????????????????????????????? | | ??????????????????????????????? | | ??????????????????????????????? | | ??????????????????????????????? | | ??????????????????????????????? | +----------------------------------------------------+ Best States ------------- Heat Dissipation 90 Energy Generation 49 Energy Capacity 570 Matter Stores 300 Matter Capacity 300 Sight Range 20 Terrain Scan Density 10 ECM Strength 2 Cloak Strength 6 Power Amplification 30 Additional Mass Support 9 Armor Coverage 450 Propulsion Shielding 66 Evasion (%) 77 Melee Accuracy 16 Target Analysis 8 Recoil Reduction 3 Offensive Hacking 40 Defensive Hacking 28 Item Schematics ----------------- Power Amplifier | -5/Factory | Hacked Weight Redist. System | -5/Factory | Hacked Robot Schematics ------------------ None Fabricated ------------ Imp. Cloaking Device | x1 | -5/Factory | Preloaded Alien Tech Used ----------------- None Achievements -------------- Ambidextrous Challenges ------------ None Game ------ Seed WaveHardlightStabilizer Manual? 0 Play Time 01:56:37 Cumulative 134.7 hours Start 2022.11.20 @ 12:47:20 End 2022.11.20 @ 23:20:15 Sessions 3 Manual Loads 0 Difficulty Rogue Special Mode None Game No. 147 Rogue 147 Adventurer 0 Explorer 0 Win Type - Total 0 Types 0/0/0/0/0/0/0/0/0 Lore% 54 Gallery% 68 Achievement% 53 Wizard Run 0 Options --------- ASCII 0 Keyboard 0 Movement Mouse Keybinds 0 Fullscreen 1 Font 18/SmallcapsGlow Map View 76x50 Tactical HUD 1 Map Filters NONE Filters NONE Steam 1 RUN: c463a979-5ad3-4b05-a64c-7958c7dd5588